[Event "Early-Titled-Tuesday-Blitz-April-02-2024"]
[Site "Chess.com"]
[Date "2024.04.02"]
[Round "5"]
[White "bascheyaro"]
[Black "DenLaz"]
[Result "1/2-1/2"]
[WhiteElo "2808"]
[BlackElo "3104"]
[TimeControl "180+1"]
[EndTime "8:58:10 PDT"]
[Termination "Game drawn by repetition"]

1. d4 {[%clk 0:03:00.9]} 1... f5 {[%clk 0:02:59.9]} 2. Nf3 {[%clk 0:03:01.1]}
2... Nf6 {[%clk 0:02:51.9]} 3. c4 {[%clk 0:03:01.1]} 3... g6 {[%clk 0:02:51.5]}
4. Nc3 {[%clk 0:03:00.8]} 4... Bg7 {[%clk 0:02:51.4]} 5. g3 {[%clk 0:03:01]}
5... O-O {[%clk 0:02:51.8]} 6. Bg2 {[%clk 0:03:01.5]} 6... d6 {[%clk 0:02:52.5]}
7. O-O {[%clk 0:03:00.9]} 7... c6 {[%clk 0:02:53.2]} 8. Qc2 {[%clk 0:02:57.6]}
8... Na6 {[%clk 0:02:52.5]} 9. Rd1 {[%clk 0:02:57.1]} 9... Qe8 {[%clk
0:02:47.2]} 10. d5 {[%clk 0:02:54.2]} 10... e5 {[%clk 0:02:41.7]} 11. dxe6
{[%clk 0:02:54.4]} 11... Bxe6 {[%clk 0:02:40.7]} 12. Nd2 {[%clk 0:02:45.7]}
12... Qe7 {[%clk 0:02:31.3]} 13. e3 {[%clk 0:02:44.7]} 13... Rad8 {[%clk
0:02:25.1]} 14. a3 {[%clk 0:02:37.2]} 14... d5 {[%clk 0:02:22.3]} 15. cxd5
{[%clk 0:02:35.3]} 15... Nxd5 {[%clk 0:02:23.2]} 16. Nxd5 {[%clk 0:02:32.1]}
16... Bxd5 {[%clk 0:02:23.6]} 17. Bxd5+ {[%clk 0:02:31.6]} 17... Rxd5 {[%clk
0:02:24.5]} 18. Nb3 {[%clk 0:02:01.1]} 18... Qe4 {[%clk 0:02:18.8]} 19. Qe2
{[%clk 0:01:52.6]} 19... Rfd8 {[%clk 0:02:18.6]} 20. Rxd5 {[%clk 0:01:48.8]}
20... Qxd5 {[%clk 0:02:18.9]} 21. Nd2 {[%clk 0:01:28.8]} 21... Nc5 {[%clk
0:02:17.5]} 22. Rb1 {[%clk 0:01:27.1]} 22... Nd3 {[%clk 0:02:16.8]} 23. Nf1
{[%clk 0:01:18.1]} 23... Ne5 {[%clk 0:02:02]} 24. e4 {[%clk 0:01:11.7]} 24...
fxe4 {[%clk 0:01:58.6]} 25. Be3 {[%clk 0:01:11.7]} 25... a6 {[%clk 0:01:46.4]}
26. Nd2 {[%clk 0:01:08.8]} 26... Qd3 {[%clk 0:01:44.6]} 27. Kf1 {[%clk 0:00:57]}
27... Nf3 {[%clk 0:01:31.5]} 28. Qxd3 {[%clk 0:00:56.6]} 28... Rxd3 {[%clk
0:01:22.9]} 29. Nxe4 {[%clk 0:00:56.7]} 29... Rb3 {[%clk 0:01:20.4]} 30. Ke2
{[%clk 0:00:50.1]} 30... Nd4+ {[%clk 0:01:17.4]} 31. Kd2 {[%clk 0:00:44.3]}
31... a5 {[%clk 0:00:50]} 32. Nc5 {[%clk 0:00:26.4]} 32... Rb5 {[%clk
0:00:46.4]} 33. b4 {[%clk 0:00:24.7]} 33... axb4 {[%clk 0:00:43.2]} 34. axb4
{[%clk 0:00:24.3]} 34... b6 {[%clk 0:00:43.1]} 35. Nd3 {[%clk 0:00:23.9]} 35...
c5 {[%clk 0:00:36.8]} 36. Kc3 {[%clk 0:00:17.9]} 36... cxb4+ {[%clk 0:00:04.5]}
37. Kc4 {[%clk 0:00:18.3]} 37... Ne2 {[%clk 0:00:05]} 38. Kxb5 {[%clk
0:00:15.5]} 38... Nc3+ {[%clk 0:00:05.4]} 39. Kxb6 {[%clk 0:00:16.1]} 39... Nxb1
{[%clk 0:00:06.3]} 40. Nxb4 {[%clk 0:00:16.7]} 40... Nc3 {[%clk 0:00:06.8]} 41.
Kc5 {[%clk 0:00:16.1]} 41... Bf8+ {[%clk 0:00:06.7]} 42. Kc4 {[%clk 0:00:16.5]}
42... Bxb4 {[%clk 0:00:07.2]} 43. Kxb4 {[%clk 0:00:17.4]} 43... Ne4 {[%clk
0:00:08.1]} 44. Kc4 {[%clk 0:00:17.7]} 44... Kf7 {[%clk 0:00:08.6]} 45. Kd5
{[%clk 0:00:17.6]} 45... Nf6+ {[%clk 0:00:09.1]} 46. Kd4 {[%clk 0:00:18]} 46...
Ke6 {[%clk 0:00:08.4]} 47. f3 {[%clk 0:00:18.5]} 47... Nd7 {[%clk 0:00:08.6]}
48. Bf4 {[%clk 0:00:18.9]} 48... Kf5 {[%clk 0:00:09.1]} 49. Ke3 {[%clk
0:00:18.5]} 49... Nb6 {[%clk 0:00:08.9]} 50. g4+ {[%clk 0:00:18.6]} 50... Ke6
{[%clk 0:00:09.1]} 51. Ke4 {[%clk 0:00:19]} 51... Nd5 {[%clk 0:00:09.7]} 52. Bg5
{[%clk 0:00:19.5]} 52... Nc3+ {[%clk 0:00:10.3]} 53. Kd4 {[%clk 0:00:19.5]}
53... Nd5 {[%clk 0:00:11]} 54. h4 {[%clk 0:00:19.4]} 54... h5 {[%clk 0:00:10]}
55. Ke4 {[%clk 0:00:18.3]} 55... hxg4 {[%clk 0:00:09.7]} 56. fxg4 {[%clk
0:00:18.7]} 56... Nc3+ {[%clk 0:00:10.3]} 57. Kf3 {[%clk 0:00:19.1]} 57... Nd5
{[%clk 0:00:10.6]} 58. Bd2 {[%clk 0:00:19.2]} 58... Kf7 {[%clk 0:00:10.6]} 59.
Ke4 {[%clk 0:00:19]} 59... Nf6+ {[%clk 0:00:11.3]} 60. Kf4 {[%clk 0:00:19.6]}
60... Nd5+ {[%clk 0:00:11.9]} 61. Kg5 {[%clk 0:00:20]} 61... Nf6 {[%clk
0:00:12.6]} 62. Bc1 {[%clk 0:00:18.2]} 62... Ne4+ {[%clk 0:00:12.6]} 63. Kh6
{[%clk 0:00:18.8]} 63... Nf6 {[%clk 0:00:11.7]} 64. g5 {[%clk 0:00:17.1]} 64...
Nh5 {[%clk 0:00:12.1]} 65. Bb2 {[%clk 0:00:16.1]} 65... Ng3 {[%clk 0:00:12.5]}
66. Be5 {[%clk 0:00:16.1]} 66... Nf5+ {[%clk 0:00:13]} 67. Kh7 {[%clk 0:00:16]}
67... Nxh4 {[%clk 0:00:13.9]} 68. Bf6 {[%clk 0:00:15.3]} 68... Ke6 {[%clk
0:00:13.7]} 69. Kg7 {[%clk 0:00:15.2]} 69... Kf5 {[%clk 0:00:14.6]} 70. Kf7
{[%clk 0:00:15.7]} 70... Nf3 {[%clk 0:00:14.8]} 71. Bb2 {[%clk 0:00:14.4]} 71...
Nxg5+ {[%clk 0:00:14]} 72. Ke7 {[%clk 0:00:13.6]} 72... Ne6 {[%clk 0:00:12.2]}
73. Bf6 {[%clk 0:00:11.5]} 73... Nf4 {[%clk 0:00:07.7]} 74. Kf7 {[%clk
0:00:11.6]} 74... Nd5 {[%clk 0:00:06.6]} 75. Bd8 {[%clk 0:00:11.8]} 75... Ne3
{[%clk 0:00:06.5]} 76. Bh4 {[%clk 0:00:11.9]} 76... Ng2 {[%clk 0:00:06.8]} 77.
Bd8 {[%clk 0:00:12.1]} 77... Nf4 {[%clk 0:00:07.5]} 78. Be7 {[%clk 0:00:12]}
78... Ne6 {[%clk 0:00:07.7]} 79. Bf6 {[%clk 0:00:11.4]} 79... Nc7 {[%clk
0:00:07.2]} 80. Be7 {[%clk 0:00:11.3]} 80... Nb5 {[%clk 0:00:07.7]} 81. Kg7
{[%clk 0:00:10.9]} 81... Nd4 {[%clk 0:00:07]} 82. Kf7 {[%clk 0:00:11]} 82... Nf3
{[%clk 0:00:07.2]} 83. Bd8 {[%clk 0:00:10.7]} 83... Ne5+ {[%clk 0:00:07.3]} 84.
Kg7 {[%clk 0:00:10.9]} 84... Nd7 {[%clk 0:00:07.8]} 85. Be7 {[%clk 0:00:10.9]}
85... Nb6 {[%clk 0:00:08.1]} 86. Kf7 {[%clk 0:00:11.3]} 86... Nd5 {[%clk
0:00:09]} 87. Bd8 {[%clk 0:00:11.8]} 87... Nf4 {[%clk 0:00:08.3]} 88. Bf6 {[%clk
0:00:11.7]} 88... Nh3 {[%clk 0:00:08.8]} 89. Be7 {[%clk 0:00:11.9]} 89... Ng5+
{[%clk 0:00:09.7]} 90. Kg7 {[%clk 0:00:12.5]} 90... Ne6+ {[%clk 0:00:10.1]} 91.
Kf7 {[%clk 0:00:13.1]} 91... Nd4 {[%clk 0:00:11]} 92. Bf6 {[%clk 0:00:13.2]}
92... Ne2 {[%clk 0:00:11.5]} 93. Be7 {[%clk 0:00:13.6]} 93... Ng1 {[%clk
0:00:11.8]} 94. Bd8 {[%clk 0:00:14]} 94... Nh3 {[%clk 0:00:12.3]} 95. Be7 {[%clk
0:00:14]} 95... Nf4 {[%clk 0:00:12.5]} 96. Bf6 {[%clk 0:00:14.4]} 1/2-1/2

[Event "Early-Titled-Tuesday-Blitz-April-02-2024"]
[Site "Chess.com"]
[Date "2024.04.02"]
[Round "5"]
[White "GodzillaChessYoutube"]
[Black "Bauman_Guy"]
[Result "1/2-1/2"]
[WhiteElo "2709"]
[BlackElo "2899"]
[TimeControl "180+1"]
[EndTime "8:58:16 PDT"]
[Termination "Game drawn - insufficient material"]

1. c4 {[%clk 0:03:00.2]} 1... e5 {[%clk 0:02:43.1]} 2. e3 {[%clk 0:02:59.7]}
2... Nf6 {[%clk 0:02:41.6]} 3. Nc3 {[%clk 0:02:59.2]} 3... g6 {[%clk 0:02:41.6]}
4. g3 {[%clk 0:02:55.8]} 4... Bg7 {[%clk 0:02:41.1]} 5. Bg2 {[%clk 0:02:55.4]}
5... O-O {[%clk 0:02:41.8]} 6. Nge2 {[%clk 0:02:54.5]} 6... c6 {[%clk
0:02:41.9]} 7. d4 {[%clk 0:02:51.6]} 7... exd4 {[%clk 0:02:41.2]} 8. exd4 {[%clk
0:02:52.5]} 8... d6 {[%clk 0:02:39.1]} 9. h3 {[%clk 0:02:50.6]} 9... Re8 {[%clk
0:02:39.4]} 10. O-O {[%clk 0:02:49.5]} 10... Nbd7 {[%clk 0:02:39.5]} 11. Be3
{[%clk 0:02:41.4]} 11... Nb6 {[%clk 0:02:31.9]} 12. b3 {[%clk 0:02:39.1]} 12...
d5 {[%clk 0:02:32.1]} 13. c5 {[%clk 0:02:35.2]} 13... Nbd7 {[%clk 0:02:32.1]}
14. Qd2 {[%clk 0:02:32.7]} 14... Nf8 {[%clk 0:02:22.7]} 15. b4 {[%clk
0:02:19.2]} 15... a6 {[%clk 0:02:21]} 16. Rfe1 {[%clk 0:02:01.9]} 16... Bf5
{[%clk 0:02:20.2]} 17. g4 {[%clk 0:02:00.5]} 17... Bd7 {[%clk 0:02:12.5]} 18.
Ng3 {[%clk 0:02:00.2]} 18... Qc8 {[%clk 0:01:54.3]} 19. Na4 {[%clk 0:01:57.7]}
19... Qd8 {[%clk 0:01:44.3]} 20. Nb6 {[%clk 0:01:57.1]} 20... Ra7 {[%clk
0:01:44.7]} 21. Rad1 {[%clk 0:01:39.8]} 21... a5 {[%clk 0:01:40.2]} 22. g5
{[%clk 0:01:33.3]} 22... Nh5 {[%clk 0:01:30]} 23. Nxh5 {[%clk 0:01:33.2]} 23...
gxh5 {[%clk 0:01:30.9]} 24. bxa5 {[%clk 0:01:31]} 24... Bf5 {[%clk 0:01:24.2]}
25. Bf4 {[%clk 0:01:22]} 25... Ne6 {[%clk 0:01:20.8]} 26. Be3 {[%clk 0:01:20.7]}
26... f6 {[%clk 0:00:59.5]} 27. gxf6 {[%clk 0:01:13.9]} 27... Bxf6 {[%clk
0:00:54.4]} 28. Kh1 {[%clk 0:01:11.5]} 28... Kh8 {[%clk 0:00:54.7]} 29. Rg1
{[%clk 0:00:53.5]} 29... Rf8 {[%clk 0:00:48.5]} 30. Bf3 {[%clk 0:00:48.3]} 30...
Bxh3 {[%clk 0:00:31.4]} 31. Bxh5 {[%clk 0:00:48]} 31... Bg7 {[%clk 0:00:31.8]}
32. Rg3 {[%clk 0:00:45.2]} 32... Qh4 {[%clk 0:00:31]} 33. Be2 {[%clk 0:00:35]}
33... Bf5+ {[%clk 0:00:24.3]} 34. Kg1 {[%clk 0:00:33.8]} 34... Be4 {[%clk
0:00:23.9]} 35. Rg2 {[%clk 0:00:32.3]} 35... Bxg2 {[%clk 0:00:22.4]} 36. Kxg2
{[%clk 0:00:33.2]} 36... Rg8 {[%clk 0:00:21.7]} 37. Bf3 {[%clk 0:00:22.3]} 37...
Bxd4+ {[%clk 0:00:20]} 38. Kf1 {[%clk 0:00:22.4]} 38... Bxe3 {[%clk 0:00:18.2]}
39. Qxe3 {[%clk 0:00:22.3]} 39... Rg6 {[%clk 0:00:11.8]} 40. Re1 {[%clk
0:00:20.8]} 40... Rxa5 {[%clk 0:00:10.1]} 41. Qc3+ {[%clk 0:00:20.8]} 41... Kg8
{[%clk 0:00:08.8]} 42. Qxa5 {[%clk 0:00:21.1]} 42... Qf4 {[%clk 0:00:07.6]} 43.
Qa8+ {[%clk 0:00:19.7]} 43... Kg7 {[%clk 0:00:07.5]} 44. Rxe6 {[%clk 0:00:20.3]}
44... Rxe6 {[%clk 0:00:06.1]} 45. Qxb7+ {[%clk 0:00:20.7]} 45... Kh6 {[%clk
0:00:06.4]} 46. Qd7 {[%clk 0:00:19.4]} 46... Rf6 {[%clk 0:00:06.6]} 47. Qh3+
{[%clk 0:00:19.1]} 47... Kg7 {[%clk 0:00:07.2]} 48. Qg2+ {[%clk 0:00:14.1]}
48... Rg6 {[%clk 0:00:07.3]} 49. Qh3 {[%clk 0:00:13.4]} 49... Rf6 {[%clk
0:00:07.7]} 50. Qg2+ {[%clk 0:00:13.4]} 50... Kh8 {[%clk 0:00:07.4]} 51. Nd7
{[%clk 0:00:12.9]} 51... Qc1+ {[%clk 0:00:04.2]} 52. Ke2 {[%clk 0:00:12.2]}
52... Re6+ {[%clk 0:00:04.6]} 53. Kd3 {[%clk 0:00:10.6]} 53... Qc4+ {[%clk
0:00:04.1]} 54. Kd2 {[%clk 0:00:10.4]} 54... Qxa2+ {[%clk 0:00:04.8]} 55. Kd3
{[%clk 0:00:09.9]} 55... Qb3+ {[%clk 0:00:05.2]} 56. Kd2 {[%clk 0:00:10.1]}
56... Qb2+ {[%clk 0:00:05.7]} 57. Kd3 {[%clk 0:00:10.1]} 57... Qb1+ {[%clk
0:00:06.3]} 58. Kd2 {[%clk 0:00:09.5]} 58... Qb2+ {[%clk 0:00:04.9]} 59. Kd3
{[%clk 0:00:09.6]} 59... Qg7 {[%clk 0:00:04.7]} 60. Qxg7+ {[%clk 0:00:08.7]}
60... Kxg7 {[%clk 0:00:05.6]} 61. Bg4 {[%clk 0:00:08.7]} 61... Rg6 {[%clk
0:00:06]} 62. f3 {[%clk 0:00:09.1]} 62... Rh6 {[%clk 0:00:03.4]} 63. Ke3 {[%clk
0:00:07.7]} 63... Kf7 {[%clk 0:00:03.5]} 64. Ne5+ {[%clk 0:00:07.6]} 64... Ke7
{[%clk 0:00:04.1]} 65. Kf4 {[%clk 0:00:07.5]} 65... Rf6+ {[%clk 0:00:04.7]} 66.
Kg5 {[%clk 0:00:07.5]} 66... h6+ {[%clk 0:00:04.5]} 67. Kh5 {[%clk 0:00:06.4]}
67... d4 {[%clk 0:00:05]} 68. Kh4 {[%clk 0:00:06.2]} 68... Kd8 {[%clk
0:00:05.1]} 69. Kg3 {[%clk 0:00:06.2]} 69... Kc7 {[%clk 0:00:05.5]} 70. f4
{[%clk 0:00:06.7]} 70... Rf8 {[%clk 0:00:05.4]} 71. Kf3 {[%clk 0:00:06.9]} 71...
Rh8 {[%clk 0:00:04.8]} 72. Bh5 {[%clk 0:00:06.6]} 72... Ra8 {[%clk 0:00:03.4]}
73. Ke4 {[%clk 0:00:06.6]} 73... Ra4 {[%clk 0:00:04.1]} 74. Nd3 {[%clk
0:00:06.7]} 74... Rc4 {[%clk 0:00:04.4]} 75. f5 {[%clk 0:00:07.1]} 75... Kd8
{[%clk 0:00:04.9]} 76. f6 {[%clk 0:00:07.4]} 76... Rc1 {[%clk 0:00:03.8]} 77. f7
{[%clk 0:00:07.7]} 77... Ke7 {[%clk 0:00:03.6]} 78. Nf4 {[%clk 0:00:07.4]} 78...
Rf1 {[%clk 0:00:02.5]} 79. Bg4 {[%clk 0:00:05.9]} 79... Kxf7 {[%clk 0:00:01.6]}
80. Bh5+ {[%clk 0:00:04.1]} 80... Kg7 {[%clk 0:00:02.2]} 81. Ne6+ {[%clk
0:00:04]} 81... Kf6 {[%clk 0:00:02.9]} 82. Nxd4 {[%clk 0:00:04.8]} 82... Rh1
{[%clk 0:00:03.5]} 83. Bf3 {[%clk 0:00:04.7]} 83... Rc1 {[%clk 0:00:04]} 84.
Nxc6 {[%clk 0:00:04.1]} 84... Rxc5 {[%clk 0:00:04.2]} 85. Nd4 {[%clk 0:00:05]}
85... Re5+ {[%clk 0:00:04.8]} 86. Kf4 {[%clk 0:00:05.2]} 86... h5 {[%clk
0:00:05.1]} 87. Ne2 {[%clk 0:00:05]} 87... Rf5+ {[%clk 0:00:05.2]} 88. Kg3
{[%clk 0:00:03.9]} 88... Rxf3+ {[%clk 0:00:06.1]} 89. Kxf3 {[%clk 0:00:03.9]}
89... h4 {[%clk 0:00:07]} 90. Kg2 {[%clk 0:00:04.1]} 90... h3+ {[%clk
0:00:07.2]} 91. Kxh3 {[%clk 0:00:05]} 1/2-1/2

[Event "Early-Titled-Tuesday-Blitz-April-02-2024"]
[Site "Chess.com"]
[Date "2024.04.02"]
[Round "6"]
[White "LiadCuba"]
[Black "Bob_2004"]
[Result "1-0"]
[WhiteElo "2543"]
[BlackElo "2361"]
[TimeControl "180+1"]
[EndTime "9:01:06 PDT"]
[Termination "LiadCuba won by resignation"]

1. d4 {[%clk 0:03:00.9]} 1... Nf6 {[%clk 0:02:57.6]} 2. c4 {[%clk 0:03:01.1]}
2... e6 {[%clk 0:02:57.4]} 3. Nc3 {[%clk 0:03:01.2]} 3... c5 {[%clk 0:02:56.8]}
4. d5 {[%clk 0:03:01.2]} 4... exd5 {[%clk 0:02:57.7]} 5. cxd5 {[%clk 0:03:01.9]}
5... d6 {[%clk 0:02:58.1]} 6. e4 {[%clk 0:03:02.5]} 6... g6 {[%clk 0:02:57.9]}
7. f4 {[%clk 0:03:03.1]} 7... Bg7 {[%clk 0:02:55.4]} 8. e5 {[%clk 0:03:03.6]}
8... Nfd7 {[%clk 0:02:51.8]} 9. Nb5 {[%clk 0:03:02.6]} 9... dxe5 {[%clk
0:02:49.6]} 10. Nd6+ {[%clk 0:03:02.4]} 10... Ke7 {[%clk 0:02:49.1]} 11. Nxc8+
{[%clk 0:03:02.2]} 11... Qxc8 {[%clk 0:02:50]} 12. Nf3 {[%clk 0:03:02.7]} 12...
e4 {[%clk 0:02:42.5]} 13. Ng5 {[%clk 0:03:01.2]} 13... Re8 {[%clk 0:02:42.3]}
14. d6+ {[%clk 0:02:55.1]} 14... Kf8 {[%clk 0:02:41.5]} 15. Qd5 {[%clk
0:02:55.5]} 15... Re6 {[%clk 0:02:26.4]} 16. Nxe6+ {[%clk 0:02:52.3]} 16... fxe6
{[%clk 0:02:26.6]} 17. Qxe6 {[%clk 0:02:52.6]} 17... Nc6 {[%clk 0:02:21.3]} 18.
Bc4 {[%clk 0:02:52.7]} 1-0

[Event "Early-Titled-Tuesday-Blitz-April-02-2024"]
[Site "Chess.com"]
[Date "2024.04.02"]
[Round "6"]
[White "Mikhail_Bryakin"]
[Black "Sofia_Blokhin"]
[Result "1-0"]
[WhiteElo "2881"]
[BlackElo "2263"]
[TimeControl "180+1"]
[EndTime "9:02:19 PDT"]
[Termination "Mikhail_Bryakin won by resignation"]

1. f4 {[%clk 0:02:43.9]} 1... d5 {[%clk 0:02:58.4]} 2. Nf3 {[%clk 0:02:43.9]}
2... c5 {[%clk 0:02:57.5]} 3. e3 {[%clk 0:02:43.5]} 3... Nc6 {[%clk 0:02:56.8]}
4. b3 {[%clk 0:02:44.2]} 4... e6 {[%clk 0:02:54.4]} 5. Bb2 {[%clk 0:02:45.1]}
5... Nf6 {[%clk 0:02:54]} 6. Be2 {[%clk 0:02:45.6]} 6... Bd6 {[%clk 0:02:53.1]}
7. O-O {[%clk 0:02:46.1]} 7... O-O {[%clk 0:02:53.2]} 8. Ne5 {[%clk 0:02:46.8]}
8... Qc7 {[%clk 0:02:49.1]} 9. Nxc6 {[%clk 0:02:46.2]} 9... Qxc6 {[%clk
0:02:42.9]} 10. Bxf6 {[%clk 0:02:42]} 10... gxf6 {[%clk 0:02:42.5]} 11. Qe1
{[%clk 0:02:42.7]} 11... f5 {[%clk 0:02:28]} 12. Qh4 {[%clk 0:02:43]} 12... Kh8
{[%clk 0:02:16]} 13. Qf6+ {[%clk 0:02:42.5]} 13... Kg8 {[%clk 0:02:16.5]} 14.
Rf3 {[%clk 0:02:43.3]} 14... Re8 {[%clk 0:02:06.4]} 15. Qh6 {[%clk 0:02:37.2]}
15... Kh8 {[%clk 0:01:24.7]} 16. Rg3 {[%clk 0:02:33.8]} 1-0

[Event "Early-Titled-Tuesday-Blitz-April-02-2024"]
[Site "Chess.com"]
[Date "2024.04.02"]
[Round "6"]
[White "Kazmin_Semyon"]
[Black "Suduvasachmatai"]
[Result "1-0"]
[WhiteElo "2608"]
[BlackElo "2316"]
[TimeControl "180+1"]
[EndTime "9:03:12 PDT"]
[Termination "Kazmin_Semyon won by resignation"]

1. e4 {[%clk 0:03:00.9]} 1... c5 {[%clk 0:02:56]} 2. Nf3 {[%clk 0:03:00.9]} 2...
d6 {[%clk 0:02:55.1]} 3. d4 {[%clk 0:03:01.6]} 3... cxd4 {[%clk 0:02:55.6]} 4.
Nxd4 {[%clk 0:03:02.5]} 4... Nf6 {[%clk 0:02:55.7]} 5. Nc3 {[%clk 0:03:03.1]}
5... a6 {[%clk 0:02:55.6]} 6. Bg5 {[%clk 0:03:03.9]} 6... e6 {[%clk 0:02:55.3]}
7. f4 {[%clk 0:03:04.6]} 7... Be7 {[%clk 0:02:54.4]} 8. Qf3 {[%clk 0:03:04]}
8... Nbd7 {[%clk 0:02:53.5]} 9. O-O-O {[%clk 0:03:03.4]} 9... O-O {[%clk
0:02:52.5]} 10. g4 {[%clk 0:03:04.1]} 10... e5 {[%clk 0:02:52.1]} 11. Nf5 {[%clk
0:03:02.7]} 11... exf4 {[%clk 0:02:52.2]} 12. Nxe7+ {[%clk 0:02:54.4]} 12...
Qxe7 {[%clk 0:02:51.3]} 13. Nd5 {[%clk 0:02:55.1]} 13... Qe6 {[%clk 0:02:45.2]}
14. Qxf4 {[%clk 0:02:39.8]} 14... Nxe4 {[%clk 0:02:31.3]} 15. Nc7 {[%clk
0:01:58.7]} 15... Qg6 {[%clk 0:02:19.3]} 16. Be7 {[%clk 0:01:57.9]} 16... Rb8
{[%clk 0:02:09.5]} 17. Bd3 {[%clk 0:01:56]} 17... Ndc5 {[%clk 0:02:07.9]} 18.
Bxf8 {[%clk 0:01:53.6]} 18... Kxf8 {[%clk 0:01:58.2]} 19. Bxe4 {[%clk
0:01:49.2]} 19... Nxe4 {[%clk 0:01:55.9]} 20. Rde1 {[%clk 0:01:43.4]} 20... Bxg4
{[%clk 0:01:49.8]} 21. Rxe4 {[%clk 0:01:39.3]} 21... Rc8 {[%clk 0:01:43.2]} 22.
Qxg4 {[%clk 0:01:33.5]} 1-0

[Event "Early-Titled-Tuesday-Blitz-April-02-2024"]
[Site "Chess.com"]
[Date "2024.04.02"]
[Round "6"]
[White "Actuary44"]
[Black "Zq1"]
[Result "0-1"]
[WhiteElo "2508"]
[BlackElo "2616"]
[TimeControl "180+1"]
[EndTime "9:03:21 PDT"]
[Termination "Zq1 won by resignation"]

1. e4 {[%clk 0:03:00.9]} 1... c5 {[%clk 0:02:59.1]} 2. d4 {[%clk 0:03:01.1]}
2... cxd4 {[%clk 0:02:58.6]} 3. c3 {[%clk 0:03:01.8]} 3... dxc3 {[%clk
0:02:58.1]} 4. Nxc3 {[%clk 0:03:02.7]} 4... d6 {[%clk 0:02:57.5]} 5. f4 {[%clk
0:03:02.9]} 5... e6 {[%clk 0:02:48.9]} 6. Nf3 {[%clk 0:03:03.4]} 6... Nf6 {[%clk
0:02:48]} 7. Bd3 {[%clk 0:03:04]} 7... Be7 {[%clk 0:02:47.6]} 8. O-O {[%clk
0:03:04.5]} 8... O-O {[%clk 0:02:47.5]} 9. Kh1 {[%clk 0:03:05]} 9... Nc6 {[%clk
0:02:46.9]} 10. Qe1 {[%clk 0:03:05.6]} 10... b6 {[%clk 0:02:37.4]} 11. Be3
{[%clk 0:03:06.1]} 11... Nb4 {[%clk 0:02:34.7]} 12. Bb1 {[%clk 0:03:05.1]} 12...
Ba6 {[%clk 0:02:33.7]} 13. Rg1 {[%clk 0:03:03.4]} 13... Nd3 {[%clk 0:02:16.8]}
14. Qd2 {[%clk 0:02:55.6]} 14... Nc5 {[%clk 0:02:13.1]} 15. b4 {[%clk
0:02:54.8]} 15... Ncd7 {[%clk 0:02:07.7]} 16. Rd1 {[%clk 0:02:40]} 16... Bb7
{[%clk 0:02:02.4]} 17. e5 {[%clk 0:02:26.7]} 17... dxe5 {[%clk 0:01:48.2]} 18.
fxe5 {[%clk 0:02:27.6]} 18... Ng4 {[%clk 0:01:47.7]} 19. Bf4 {[%clk 0:02:06]}
19... Bxb4 {[%clk 0:01:38.2]} 20. Qc2 {[%clk 0:01:47.5]} 20... g6 {[%clk
0:01:36.7]} 21. Ne4 {[%clk 0:01:33.7]} 21... Bxe4 {[%clk 0:01:32.8]} 22. Qxe4
{[%clk 0:01:27.4]} 22... Nf2+ {[%clk 0:01:31.1]} 0-1

[Event "Early-Titled-Tuesday-Blitz-April-02-2024"]
[Site "Chess.com"]
[Date "2024.04.02"]
[Round "6"]
[White "stollenmonster"]
[Black "blitzking1729"]
[Result "0-1"]
[WhiteElo "2902"]
[BlackElo "2779"]
[TimeControl "180+1"]
[EndTime "9:03:25 PDT"]
[Termination "blitzking1729 won by resignation"]

1. e4 {[%clk 0:03:00.9]} 1... e5 {[%clk 0:02:57.5]} 2. Nc3 {[%clk 0:03:00.6]}
2... Nf6 {[%clk 0:02:56.2]} 3. g3 {[%clk 0:03:01.5]} 3... c6 {[%clk 0:02:54.7]}
4. Bg2 {[%clk 0:03:01.7]} 4... d5 {[%clk 0:02:54.7]} 5. Nge2 {[%clk 0:03:00.3]}
5... d4 {[%clk 0:02:54.5]} 6. Nb1 {[%clk 0:03:00.2]} 6... c5 {[%clk 0:02:55.1]}
7. d3 {[%clk 0:03:00.5]} 7... Nc6 {[%clk 0:02:55.5]} 8. h3 {[%clk 0:03:00.9]}
8... h6 {[%clk 0:02:51.5]} 9. O-O {[%clk 0:03:01.2]} 9... g5 {[%clk 0:02:51.2]}
10. f4 {[%clk 0:02:51.8]} 10... gxf4 {[%clk 0:02:50.9]} 11. gxf4 {[%clk
0:02:52.7]} 11... Rg8 {[%clk 0:02:51.8]} 12. Kh1 {[%clk 0:02:52.4]} 12... Nh5
{[%clk 0:02:32.6]} 13. Nd2 {[%clk 0:02:37.8]} 13... exf4 {[%clk 0:02:23]} 14.
Nf3 {[%clk 0:02:38.2]} 14... Bd6 {[%clk 0:02:19.3]} 15. c3 {[%clk 0:02:37]}
15... Be6 {[%clk 0:02:06]} 16. cxd4 {[%clk 0:02:34.2]} 16... cxd4 {[%clk
0:01:59.1]} 17. e5 {[%clk 0:02:02.2]} 17... Nxe5 {[%clk 0:01:53.1]} 18. Nxe5
{[%clk 0:01:59.4]} 18... Bxe5 {[%clk 0:01:51.5]} 19. Qe1 {[%clk 0:01:28.7]}
19... Rxg2 {[%clk 0:01:44.2]} 20. Kxg2 {[%clk 0:01:26.4]} 20... Bd5+ {[%clk
0:01:41.5]} 21. Rf3 {[%clk 0:01:21.8]} 21... Qg5+ {[%clk 0:01:37.1]} 0-1

[Event "Early-Titled-Tuesday-Blitz-April-02-2024"]
[Site "Chess.com"]
[Date "2024.04.02"]
[Round "6"]
[White "vladislavkovalev"]
[Black "Andrey_Klymchuk"]
[Result "1-0"]
[WhiteElo "2889"]
[BlackElo "2719"]
[TimeControl "180+1"]
[EndTime "9:03:25 PDT"]
[Termination "vladislavkovalev won by resignation"]

1. e4 {[%clk 0:02:57.9]} 1... c5 {[%clk 0:02:59.1]} 2. Nf3 {[%clk 0:02:58.1]}
2... Nc6 {[%clk 0:02:58.7]} 3. Bb5 {[%clk 0:02:57.9]} 3... g6 {[%clk 0:02:58.5]}
4. Bxc6 {[%clk 0:02:57.2]} 4... bxc6 {[%clk 0:02:58.1]} 5. O-O {[%clk
0:02:57.8]} 5... Bg7 {[%clk 0:02:58.2]} 6. Re1 {[%clk 0:02:56.3]} 6... Nh6
{[%clk 0:02:57.5]} 7. c3 {[%clk 0:02:56.5]} 7... O-O {[%clk 0:02:57.1]} 8. d4
{[%clk 0:02:56.8]} 8... cxd4 {[%clk 0:02:57.9]} 9. cxd4 {[%clk 0:02:57.7]} 9...
d6 {[%clk 0:02:58.4]} 10. h3 {[%clk 0:02:55.6]} 10... f6 {[%clk 0:02:57.9]} 11.
Nc3 {[%clk 0:02:54.6]} 11... Nf7 {[%clk 0:02:58]} 12. Be3 {[%clk 0:02:52.2]}
12... Qa5 {[%clk 0:02:57.3]} 13. Rc1 {[%clk 0:02:52.3]} 13... Bd7 {[%clk
0:02:57.2]} 14. b3 {[%clk 0:02:51.6]} 14... Qh5 {[%clk 0:02:54.5]} 15. Nd2
{[%clk 0:02:48.3]} 15... Qxd1 {[%clk 0:02:52]} 16. Rexd1 {[%clk 0:02:48.2]}
16... Rfb8 {[%clk 0:02:43.7]} 17. Nc4 {[%clk 0:02:48.1]} 17... a5 {[%clk
0:02:42]} 18. Na4 {[%clk 0:02:45.2]} 18... Ra6 {[%clk 0:02:41.3]} 19. Bd2 {[%clk
0:02:35.7]} 19... Rb5 {[%clk 0:02:38.3]} 20. Rc2 {[%clk 0:02:26.3]} 20... f5
{[%clk 0:02:37.8]} 21. e5 {[%clk 0:01:51.3]} 21... dxe5 {[%clk 0:02:14.9]} 22.
dxe5 {[%clk 0:01:51.1]} 22... Rd5 {[%clk 0:01:21.3]} 23. Ncb6 {[%clk 0:01:49.2]}
23... Rd3 {[%clk 0:01:21.2]} 24. Nxd7 {[%clk 0:01:49.4]} 24... Rxd7 {[%clk
0:01:20.8]} 25. Nc5 {[%clk 0:01:49.8]} 1-0